fUSD/lending_fUSD_20240916
["ID","MTS","AMOUNT","RATE_DAILY","PERIOD"]
[338342794,1726525842184,-151.0,0.0001478,2]
[338342795,1726525842193,-355.281799,0.0001478,2]
[338342796,1726525842203,-355.281799,0.0001478,2]
[338342797,1726525842212,-151.0,0.0001478,2]
[338342798,1726525842222,-151.0,0.0001478,2]
[338342799,1726525842231,-299.919505,0.0001478,2]
[338342800,1726525842241,-687.99886,0.0001478,2]
[338342801,1726525842251,-299.919505,0.0001478,2]
[338342802,1726525842260,-687.99886,0.0001478,2]
[338342803,1726525842269,-456.411688,0.0001478,2]
[338342805,1726525842279,-151.0,0.0001478,2]
[338342807,1726525842288,-456.411688,0.0001478,2]
[338342808,1726525842298,-151.0,0.0001478,2]
[338342810,1726525842308,-151.0,0.0001478,2]
[338342812,1726525842319,-151.0,0.0001478,2]
[338342815,1726525842328,-151.0,0.0001478,2]
[338342817,1726525842337,-1752.056258,0.0001478,2]
[338342819,1726525842347,-1752.056258,0.0001478,2]
[338342822,1726525842355,-151.0,0.0001478,2]
[338342824,1726525842365,-151.0,0.0001478,2]
[338342826,1726525842374,-151.0,0.0001478,2]
[338342828,1726525842383,-151.0,0.0001478,2]
[338342830,1726525842393,-233900.76056352,0.0001478,2]
[338342831,1726525842402,-151.0,0.0001478,2]
[338342832,1726525842411,-351.445464,0.0001478,2]
[338342833,1726525842420,-351.445464,0.0001478,2]
[338342834,1726525842430,-151.0,0.0001478,2]
[338342835,1726525842439,-151.0,0.0001478,2]
[338342836,1726525842448,-151.0,0.0001478,2]
[338342837,1726525842457,-238.087688,0.0001478,2]
[338342838,1726525842466,-238.087688,0.0001478,2]
[338342839,1726525842475,-838.84484458,0.00014787,2]
[338342840,1726525842485,-151.0,0.0001479,2]
[338342841,1726525842494,-151.0,0.0001479,2]
[338342842,1726525842503,-152.83,0.0001479,2]
[338342843,1726525842512,-152.83,0.0001479,2]
[338342844,1726525842522,-1135.703444,0.00014794,2]
[338342845,1726525842531,-151.0,0.000148,2]
[338342846,1726525842540,-224.716967,0.000148,2]
[338342847,1726525842550,-224.716967,0.000148,2]
[338342848,1726525842559,-151.0,0.000148,2]
[338342849,1726525842570,-151.0,0.000148,2]
[338342850,1726525842580,-151.0,0.000148,2]
[338342851,1726525842589,-151.0,0.000148,2]
[338342852,1726525842599,-1000.0,0.000148,2]
[338342853,1726525842608,-1177717.4319363,0.000148,2]
[338342854,1726525842618,-690.9596,0.000148,2]
[338342855,1726525842628,-446.76,0.00014834,2]
[338342856,1726525842637,-800.0,0.00014834,2]
[338342857,1726525842646,-3545.72641624,0.0001485,2]
[338342858,1726525842656,-230.0,0.0001489,2]
[338342859,1726525842665,-16743.0,0.00014896,2]
[338342860,1726525842674,-151.0,0.00014896,2]
[338342861,1726525842683,-151.0,0.00014896,2]
[338342862,1726525842696,-151.0,0.00014896,2]
[338342863,1726525842705,-1901.482368,0.00014896,2]
[338342864,1726525842714,-151.995565,0.00014896,2]
[338342865,1726525842724,-151.0,0.00014896,2]
[338342866,1726525842733,-435.265094,0.00014896,2]
[338342867,1726525842743,-435.265094,0.00014896,2]
[338342868,1726525842752,-151.0,0.00014896,2]
[338342869,1726525842762,-151.0,0.00014896,2]
[338342870,1726525842772,-26538.49952258,0.000149,2]
[338342871,1726525842781,-171.04883216,0.000149,2]
[338342872,1726525842790,-151.0,0.000149,2]
[338342873,1726525842799,-152.692736,0.000149,2]
[338342874,1726525842808,-151.0,0.000149,2]
[338342875,1726525842821,-152.692736,0.000149,2]
[338342876,1726525842830,-446.651797,0.000149,2]
[338342877,1726525842839,-446.651797,0.000149,2]
[338342878,1726525842848,-416.01968,0.000149,2]
[338342879,1726525842858,-209.386854,0.000149,2]
[338342880,1726525842867,-416.01968,0.000149,2]
[338342881,1726525842876,-209.386854,0.000149,2]
[338342882,1726525842885,-151.0,0.000149,2]
[338342883,1726525842895,-500.0,0.000149,2]
[338342884,1726525842905,-151.0,0.000149,2]
[338342885,1726525842915,-151.0,0.000149,2]
[338342886,1726525842924,-355.281799,0.000149,2]
[338342887,1726525842934,-179.19930009,0.000149,2]
[338342888,1726525842943,-355.281799,0.000149,2]
[338342889,1726525842953,-1847.40467511,0.000149,2]
[338342890,1726525842963,-687.99886,0.000149,2]
[338342891,1726525842972,-687.99886,0.000149,2]
[338342892,1726525842981,-1752.056258,0.000149,2]
[338342893,1726525842990,-1752.056258,0.000149,2]
[338342894,1726525843000,-151.0,0.000149,2]
[338342895,1726525843009,-151.0,0.000149,2]
[338342896,1726525843019,-151.0,0.000149,2]
[338342897,1726525843028,-349.662044,0.000149,2]
[338342898,1726525843037,-349.662044,0.000149,2]
[338342899,1726525843046,-151.0,0.000149,2]
[338342900,1726525843055,-151.0,0.000149,2]
[338342901,1726525843069,-151.0,0.000149,2]
[338342902,1726525843081,-151.0,0.000149,2]
[338342903,1726525843091,-1000.0,0.000149,2]
[338342904,1726525843101,-183.67499,0.000149,2]
[338342905,1726525843111,-183.67499,0.000149,2]
[338342906,1726525843120,-989.697639,0.000149,2]
[338342907,1726525843130,-989.697639,0.000149,2]
[338342908,1726525843139,-547.686917,0.000149,2]
[338342909,1726525843148,-547.686917,0.000149,2]
[338342910,1726525843157,-5800.0,0.000149,2]
[338342911,1726525843166,-177.68959691,0.000149,2]
[338342912,1726525843175,-3046.51856455,0.000149,2]
[338342913,1726525843185,-397.656286,0.000149,2]
[338342914,1726525843194,-397.656286,0.000149,2]
[338342915,1726525843203,-421.35408526,0.000149,2]
[338342916,1726525843213,-2000.0,0.00014918,2]
[338342917,1726525843223,-200.0,0.00014918,2]
[338342918,1726525843232,-277.0,0.0001499,2]
[338342919,1726525843243,-230.0,0.0001499,2]
[338342920,1726525843253,-282.0,0.0001499,2]
[338342921,1726525843262,-236.6402341,0.0001499,2]
[338342922,1726525843271,-233.7594773,0.0001499,2]
[338342923,1726525843281,-230.8787205,0.0001499,2]
[338342924,1726525843291,-227.9979636,0.0001499,2]
[338342925,1726525843300,-225.1172068,0.0001499,2]
[338342926,1726525843310,-464942.5109239,0.0001499,3]
[338342927,1726525843325,-151.0,0.0001499,2]
[338342928,1726525843334,-435.265094,0.0001499,2]
[338342929,1726525843344,-435.265094,0.0001499,2]
[338342930,1726525843353,-151.0,0.0001499,2]
[338342931,1726525843362,-151.0,0.0001499,2]
[338342932,1726525843371,-151.0,0.0001499,2]
[338342933,1726525843381,-1340.0923093,0.0001499,2]
[338342934,1726525843390,-1269.5871211,0.0001499,2]
[338342935,1726525843399,-1199.081933,0.0001499,2]
[338342936,1726525843409,-1128.5767448,0.0001499,2]
[338342937,1726525843418,-1058.0715566,0.0001499,2]
[338342938,1726525843427,-351.445464,0.0001499,2]
[338342939,1726525843436,-351.445464,0.0001499,2]
[338342940,1726525843445,-1456.383519,0.0001499,2]
[338342941,1726525843455,-1379.7599958,0.0001499,2]
[338342942,1726525843464,-1303.1364727,0.0001499,2]
[338342943,1726525843474,-1226.5129496,0.0001499,2]
[338342944,1726525843484,-1149.8894264,0.0001499,2]
[338342945,1726525843494,-151.0,0.0001499,2]
[338342946,1726525843503,-214.845802,0.0001499,2]
[338342947,1726525843513,-151.0,0.0001499,2]
[338342948,1726525843522,-238.087688,0.0001499,2]
[338342949,1726525843531,-238.087688,0.0001499,2]
[338342950,1726525843540,-1000.0,0.0001499,2]
[338342951,1726525843550,-425.0,0.0001499,2]
[338342952,1726525843560,-31009.0,0.00015,2]
[338342953,1726525843572,-669912.53775224,0.00015,2]
[338342954,1726525843581,-87025.63118287,0.00015,2]
[338342955,1726525843758,-234933.31058345,0.00015,2]
[338342956,1726525843771,-1110.42483832,0.00015,2]
[338342957,1726525843938,-8170.11367879,0.00015,2]
[338342958,1726525843950,-17586.54528198,0.00015,2]
[338342985,1726525845404,-3400.07,0.00013944,2]
[338342988,1726525845413,-422.56,0.00014055,2]
[338342991,1726525845422,-752.99,0.00014055,2]
[338342994,1726525845432,-150.0,0.00014192,2]
[338342997,1726525845441,-427.94,0.00014192,2]
[338343000,1726525845450,-357.82,0.00014192,2]
[338343003,1726525845459,-150.0,0.00014192,2]
[338343006,1726525845468,-150.0,0.00014192,2]
[338343010,1726525845478,-151.0,0.00014578,2]
[338343013,1726525845487,-5042.61999995,0.00015,2]
[338343014,1726525845566,-151.0,0.0001477,2]
[338343015,1726525845576,-1805.77125,0.00015,2]
[338343016,1726525845587,-305.43617338,0.00015,2]
[338343017,1726525845598,-411.59999999,0.00015,2]
[338343018,1726525874954,500.0,0.00011164,2]
[338343019,1726525899372,500.0,0.00011164,2]
[338343020,1726525900932,500.0,0.00012534,2]
[338343021,1726525953021,174.54,0.0001087,2]
[338343022,1726525961690,500.0,0.00011164,2]
[338343023,1726526012143,500.0,0.00011164,2]
[338343024,1726526013752,500.0,0.00012534,2]
[338343025,1726526035130,391.85,0.00011645,2]
[338343026,1726526038218,150.0,0.00026,60]
[338343027,1726526074359,156.42,0.00010959,2]
[338343028,1726526131903,563.0,0.00011164,2]
[338343030,1726526249678,379.3009,0.00026,120]
[338343031,1726526344957,1372.0,0.00026,60]
[338343033,1726526621267,900.22382242,0.00026,60]
[338343035,1726526663575,384.69,0.0001146,2]
[338343036,1726526693750,168.41,0.00010959,2]
[338343064,1726526999554,2000.0,0.00026,60]
[338343076,1726527031667,-250.0,0.00013233,2]
[338343077,1726527031677,-150.0,0.00013271,2]
[338343079,1726527031687,-250.0,0.00013318,2]
[338343081,1726527031696,-238.13,0.00013319,2]
[338343083,1726527031705,-159.73,0.00013332,2]
[338343085,1726527031715,-365.28,0.00013378,2]
[338343086,1726527031724,-159.73,0.00013398,2]
[338343087,1726527031734,-250.0,0.00013403,2]
[338343088,1726527031743,-170.1,0.00013403,2]
[338343089,1726527031754,-153.19,0.00013468,2]
[338343090,1726527031763,-150.0,0.00013479,2]
[338343091,1726527031774,-7882.96881459,0.00013515,2]
[338343092,1726527031789,-284.51815666,0.00013515,2]
[338343093,1726527031800,-544.0998858,0.00013515,2]
[338343094,1726527031812,-942.89298596,0.00013515,2]
[338343095,1726527031827,-345.52015699,0.00013515,2]
[338343096,1726527031836,-336.9780476,0.00013554,2]
[338343097,1726527031932,-543.0219524,0.00013554,2]
[338343098,1726527031942,-164.57,0.00013618,2]
[338343099,1726527031951,-150.0,0.00013698,2]
[338343100,1726527031961,-191.9,0.00013699,2]
[338343101,1726527031970,-200.0,0.00013699,2]
[338343102,1726527031979,-1345.96244161,0.00013699,2]
[338343115,1726527037591,-1078.30371341,0.00013515,2]
[338343116,1726527037603,-544.91633961,0.00013515,2]
[338343118,1726527037628,-1609.10353954,0.00013515,2]
[338343120,1726527037638,-25871.62385517,0.00013699,2]
[338343121,1726527037649,-1057.418165,0.00013699,2]
[338343122,1726527037743,-1698.02186945,0.00013699,2]
[338343123,1726527037754,-1038.77366877,0.00013699,2]
[338343124,1726527037764,-12.97483579,0.00013699,2]
[338343125,1726527037775,-487.02516421,0.00013699,2]
[338343126,1726527037790,-79.99737018,0.00013699,2]
[338343127,1726527037801,-1364.83123837,0.00013699,2]
[338343128,1726527037812,-1306.17139145,0.00013699,2]
[338343129,1726527037822,-3155.67651662,0.00013699,2]
[338343130,1726527037833,-5533.35431226,0.00013699,2]
[338343131,1726527037844,-279.36,0.00013699,2]
[338343132,1726527037855,-31233.16703594,0.00013699,2]
[338343133,1726527037883,-1266.25068988,0.00013699,2]
[338343134,1726527037894,-464.27999997,0.00013699,2]
[338343135,1726527037905,-540.65357155,0.00013699,2]
[338343136,1726527037916,-1291.525,0.00013699,2]
[338343137,1726527037928,-2931.71191177,0.00013699,2]
[338343138,1726527037940,-1181.88096201,0.00013699,2]
[338343139,1726527037950,-500.0,0.00013699,2]
[338343140,1726527037959,-500.0,0.00013699,2]
[338343141,1726527037968,-500.0,0.00013699,2]
[338343142,1726527037978,-258.11903789,0.00013699,2]
[338343143,1726527037989,-241.88096211,0.00013699,2]
[338343144,1726527037999,-879.15085255,0.00013699,2]
[338343145,1726527038008,-384.69,0.00013724,2]
[338343146,1726527038017,-500.0,0.00013799,2]
[338343147,1726527038027,-500.0,0.00013799,2]
[338343149,1726527038036,-500.0,0.00013799,2]
[338343151,1726527038045,-500.0,0.00013799,2]
[338343153,1726527038055,-752.99,0.000138,2]
[338343155,1726527038064,-427.94,0.000138,2]
[338343157,1726527038073,-150.0,0.000138,2]
[338343159,1726527038082,-593.93,0.000138,2]
[338343161,1726527038092,-424.61,0.000138,2]
[338343163,1726527038101,-500.0,0.00013899,2]
[338343164,1726527038110,-500.0,0.00013899,2]
[338343165,1726527038120,-500.0,0.00013899,2]
[338343166,1726527038129,-500.0,0.00013899,2]
[338343167,1726527038139,-150.0,0.000139,2]
[338343168,1726527038150,-150.0,0.000139,2]
[338343169,1726527038160,-150.0,0.000139,2]
[338343170,1726527038170,-422.56,0.000139,2]
[338343171,1726527038179,-427.94,0.000139,2]
[338343172,1726527038188,-357.82,0.000139,2]
[338343173,1726527038198,-150.0,0.000139,2]
[338343174,1726527038208,-752.99,0.000139,2]
[338343175,1726527038217,-427.94,0.000139,2]
[338343176,1726527038227,-150.0,0.000139,2]
[338343177,1726527038239,-150.0,0.000139,2]
[338343178,1726527038248,-752.99,0.000139,2]
[338343179,1726527038258,-357.18,0.000139,2]
[338343180,1726527038268,-422.56,0.000139,2]
[338343181,1726527038278,-150.0,0.000139,2]
[338343182,1726527038287,-150.0,0.000139,2]
[338343183,1726527038297,-943.0,0.000139,2]
[338343184,1726527038306,-150.0,0.000139,2]
[338343185,1726527038316,-752.99,0.000139,2]
[338343186,1726527038326,-150.0,0.000139,2]
[338343187,1726527038335,-427.94,0.000139,2]
[338343188,1726527038345,-862.11,0.000139,2]
[338343189,1726527038354,-189.40566355,0.000139,2]
[338343190,1726527038367,-563.58433645,0.000139,2]
[338343191,1726527038376,-209.99,0.000139,2]
[338343192,1726527038385,-150.0,0.000139,2]
[338343193,1726527038395,-752.99,0.000139,2]
[338343194,1726527038404,-427.94,0.000139,2]
[338343195,1726527038414,-300.0,0.000139,2]
[338343196,1726527038425,-427.94,0.000139,2]
[338343197,1726527038435,-752.99,0.000139,2]
[338343198,1726527038444,-150.0,0.000139,2]
[338343199,1726527038454,-150.0,0.000139,2]
[338343200,1726527038463,-500.0,0.000139,2]
[338343201,1726527038472,-542.20353195,0.00013904,2]
[338343202,1726527038482,-500.0,0.00013904,2]
[338343203,1726527038491,-500.0,0.00013904,2]
[338343204,1726527038500,-500.0,0.0001398,2]
[338343205,1726527038510,-271.30458156,0.0001398,2]
[338343206,1726527038520,-448.0,0.00014144,2]
[338343207,1726527038532,-624.0,0.00014144,2]
[338343208,1726527038542,-1547.0,0.00014144,2]
[338343209,1726527038551,-1261.0,0.00014144,2]
[338343210,1726527038559,-553.0,0.00014144,2]
[338343211,1726527038568,-1901.0,0.00014144,2]
[338343212,1726527038577,-3344.0,0.00014144,2]
[338343213,1726527038587,-248.0,0.00014144,2]
[338343214,1726527038597,-1638.97255004,0.00014144,2]
[338343215,1726527038608,-264.24,0.00014144,2]
[338343216,1726527038620,-17.78744996,0.00014144,2]
[338343217,1726527038629,-806.0,0.00014144,2]
[338343218,1726527038638,-1146.0,0.00014144,2]
[338343219,1726527038647,-2423.12560413,0.00014144,2]
[338343220,1726527038659,-1061.97783356,0.00014144,2]
[338343225,1726527039592,-3175.84656231,0.00014144,2]
[338343226,1726527039603,-5861.0,0.00014144,2]
[338343227,1726527039612,-150.0,0.00014144,2]
[338343228,1726527039622,-1079.0,0.00014144,2]
[338343229,1726527039631,-150.0,0.00014192,2]
[338343230,1726527039641,-150.0,0.00014192,2]
[338343231,1726527039650,-150.0,0.00014192,2]
[338343232,1726527039661,-150.0,0.00014192,2]
[338343233,1726527039671,-150.0,0.00014192,2]
[338343234,1726527039680,-150.0,0.00014192,2]
[338343235,1726527039690,-150.0,0.00014192,2]
[338343236,1726527039700,-111.28495038,0.00014192,2]
[338343237,1726527039712,-38.71504962,0.00014192,2]
[338343238,1726527039722,-150.0,0.00014192,2]
[338343239,1726527039732,-150.0,0.00014192,2]
[338343240,1726527039742,-150.0,0.00014192,2]
[338343241,1726527039751,-150.0,0.00014192,2]
[338343242,1726527039761,-300.36,0.00014192,2]
[338343243,1726527039770,-4215.14459637,0.00014474,2]
[338343244,1726527039781,-4285.81638443,0.00014474,2]
[338343245,1726527039793,-587.72819476,0.00014474,2]
[338343246,1726527039805,-338.0226125,0.00014474,2]
[338343247,1726527039816,-1952.46287706,0.00014474,2]
[338343248,1726527039827,-3356.99683505,0.00014474,2]
[338343249,1726527039837,-500.0,0.00014521,2]
[338343250,1726527039846,-14736.17150013,0.00014521,2]
[338343251,1726527039855,-194.986,0.0001455,2]
[338343252,1726527039864,-8301.02351995,0.00014569,2]
[338343253,1726527039876,-1518.24201,0.00014569,2]
[338343254,1726527039888,-1363.68834929,0.00014569,2]
[338343255,1726527039900,-2023.404,0.00014569,2]
[338343256,1726527039916,-1529.81362089,0.00014569,2]
[338343257,1726527039925,-500.0,0.00014574,2]
[338343258,1726527039934,-500.0,0.00014574,2]
[338343259,1726527039944,-500.0,0.00014574,2]
[338343260,1726527039954,-500.0,0.00014574,2]
[338343261,1726527039963,-500.0,0.00014577,2]
[338343262,1726527039972,-500.0,0.00014577,2]
[338343263,1726527039983,-500.0,0.00014577,2]
[338343264,1726527039992,-151.0,0.00014578,2]
[338343265,1726527040001,-151.0,0.00014578,2]
[338343266,1726527040011,-151.0,0.00014578,2]
[338343268,1726527040020,-258.424512,0.00014578,2]
[338343270,1726527040030,-7217.73558218,0.00014616,2]
[338343272,1726527040042,-2729.94385965,0.00014616,2]
[338343274,1726527040053,-837.74750378,0.00014616,2]
[338343276,1726527040065,-2658.3,0.00014616,2]
[338343279,1726527040077,-1086.34670665,0.00014616,2]
[338343281,1726527040088,-206.09784787,0.00014616,2]
[338343283,1726527040098,-1265.05977642,0.00014663,2]
[338343285,1726527040109,-1340.90112219,0.00014663,2]
[338343287,1726527040120,-12130.21060152,0.00014663,2]
[338343289,1726527040130,-429.62,0.000147,2]
[338343291,1726527040139,-307.86,0.000147,2]
[338343293,1726527040149,-1014.66,0.000147,2]
[338343295,1726527040158,-359.0,0.000147,2]
[338343297,1726527040168,-1779.0,0.000147,2]
[338343299,1726527040178,-1000.0,0.000147,2]
[338343301,1726527040188,-226.0,0.000147,2]
[338343303,1726527040198,-14736.17150013,0.00014711,2]
[338343305,1726527040208,-163.91,0.00014719,2]
[338343307,1726527040218,-2500.0,0.00014722,2]
[338343309,1726527040228,-1774.79110189,0.0001475,2]
[338343311,1726527040237,-150.0,0.00014756,2]
[338343313,1726527040246,-14736.17150013,0.00014758,2]
[338343315,1726527040256,-151.0,0.0001477,2]
[338343317,1726527040265,-151.0,0.0001477,2]
[338343319,1726527040274,-258.424512,0.0001477,2]
[338343320,1726527040284,-151.0,0.0001478,2]
[338343322,1726527040294,-151.0,0.0001478,2]
[338343324,1726527040304,-258.424512,0.0001478,2]
[338343326,1726527040313,-1500.0,0.00014794,2]
[338343328,1726527040322,-151.0,0.000148,2]
[338343330,1726527040332,-170.966444,0.000148,2]
[338343333,1726527040343,-258.424512,0.000148,2]
[338343335,1726527040352,-308.63472768,0.000148,2]
[338343337,1726527040363,-150.0,0.00014803,2]
[338343339,1726527040374,-14736.17150013,0.00014805,2]
[338343341,1726527040383,-308.63472768,0.00014817,2]
[338343343,1726527040393,-255.0,0.00014821,2]
[338343345,1726527040402,-308.63472768,0.00014833,2]
[338343347,1726527040412,-727.0,0.0001484,2]
[338343349,1726527040421,-5800.0,0.00014841,2]
[338343350,1726527040431,-299.66750924,0.00014846,2]
[338343352,1726527040441,-5800.0,0.00014849,2]
[338343355,1726527040452,-204.39729,0.0001485,2]
[338343357,1726527040462,-308.63472768,0.0001485,2]
[338343359,1726527040471,-14736.17150013,0.00014853,2]
[338343361,1726527040480,-5800.0,0.00014858,2]
[338343363,1726527040490,-5800.0,0.00014866,2]
[338343365,1726527040500,-308.63472768,0.00014867,2]
[338343367,1726527040510,-500.0,0.00014874,2]
[338343369,1726527040520,-247.16265751,0.00014874,2]
[338343371,1726527040535,-5800.0,0.00014874,2]
[338343373,1726527040546,-2000.0,0.00014876,3]
[338343375,1726527040555,-150.0,0.0001488,2]
[338343377,1726527040565,-8706.57103949,0.00014881,3]
[338343379,1726527040575,-8500.0,0.00014882,2]
[338343381,1726527040584,-500.0,0.00014882,2]
[338343383,1726527040593,-5800.0,0.00014883,2]
[338343384,1726527040602,-308.63472768,0.00014883,2]
[338343386,1726527040613,-34826.284158,0.0001489,3]
[338343388,1726527040624,-352.89950838,0.0001489,2]
[338343390,1726527040634,-8500.0,0.00014891,2]
[338343392,1726527040644,-500.0,0.00014891,2]
[338343394,1726527040654,-5800.0,0.00014891,2]
[338343396,1726527040663,-352.89950837,0.00014895,2]
[338343398,1726527040673,-188.72978386,0.00014898,2]
[338343401,1726527040683,-500.0,0.000149,2]
[338343403,1726527040693,-8500.0,0.000149,2]
[338343404,1726527040703,-381.9733011,0.000149,2]
[338343406,1726527040712,-530.44505613,0.000149,2]
[338343408,1726527040722,-35000.0,0.000149,2]
[338343410,1726527040731,-477.31654599,0.000149,2]
[338343412,1726527040741,-493.19378236,0.000149,2]
[338343414,1726527040750,-500.0,0.000149,2]
[338343416,1726527040759,-7500.0,0.000149,2]
[338343418,1726527040769,-5800.0,0.000149,2]
[338343420,1726527040779,-14736.17150013,0.000149,2]
[338343422,1726527040789,-308.63472768,0.000149,2]
[338343424,1726527040798,-352.89950837,0.000149,2]
[338343426,1726527040808,-3798.54382426,0.000149,2]
[338343428,1726527040817,-150.0,0.00014933,2]
[338343430,1726527040827,-152.15,0.0001496,2]
[338343432,1726527040837,-500.0,0.00014969,2]
[338343434,1726527040846,-500.0,0.00014969,2]
[338343436,1726527040856,-515.84849782,0.00014969,2]
[338343438,1726527040866,-26119.7131185,0.0001497,3]
[338343440,1726527040877,-160.71705699,0.00014973,2]
[338343442,1726527040886,-500.0,0.00014973,2]
[338343444,1726527040896,-472.6664449,0.00014973,2]
[338343446,1726527040906,-500.32643359,0.00014973,2]
[338343448,1726527040915,-500.0,0.00014973,2]
[338343450,1726527040926,-500.0,0.00014973,2]
[338343452,1726527040936,-507.8403653,0.00014973,2]
[338343454,1726527040945,-17413.142079,0.0001498,3]
[338343456,1726527040955,-152.15,0.0001498,2]
[338343458,1726527040965,-238.13,0.00014984,2]
[338343460,1726527040974,-8706.57103949,0.00014989,3]
[338343462,1726527040983,-78359.1393554,0.0001499,3]
[338343464,1726527040993,-41597.0166726,0.0001499,3]
[338343466,1726527041002,-152.15,0.0001499,2]
[338343468,1726527041012,-542.0,0.0001499,2]
[338343470,1726527041022,-151.0,0.0001499,2]
[338343472,1726527041031,-258.424512,0.0001499,2]
[338343474,1726527041041,-87065.7103949,0.0001499,3]
[338343476,1726527041051,-291179.116708,0.0001499,3]
[338343478,1726527041060,-152.15,0.0001499,2]
[338343480,1726527041069,-152.15,0.0001499,2]
[338343482,1726527041079,-152.15,0.0001499,2]
[338343484,1726527041089,-152.15,0.0001499,2]
[338343486,1726527041098,-152.15,0.0001499,2]
[338343488,1726527041108,-152.15,0.0001499,2]
[338343490,1726527041117,-152.15,0.0001499,2]
[338343492,1726527041127,-152.15,0.0001499,2]
[338343493,1726527041136,-152.15,0.0001499,2]
[338343495,1726527041146,-152.15,0.0001499,2]
[338343497,1726527041155,-152.15,0.0001499,2]
[338343499,1726527041165,-152.15,0.0001499,2]
[338343501,1726527041175,-152.15,0.0001499,2]
[338343503,1726527041184,-152.15,0.0001499,2]
[338343505,1726527041194,-152.15,0.0001499,2]
[338343507,1726527041203,-152.15,0.0001499,2]
[338343509,1726527041213,-152.15,0.0001499,2]
[338343511,1726527041223,-152.15,0.0001499,2]
[338343513,1726527041232,-152.15,0.0001499,2]
[338343532,1726527041400,-152.15,0.0001499,2]
[338343534,1726527041420,-152.15,0.0001499,2]
[338343536,1726527041430,-152.15,0.0001499,2]
[338343538,1726527041439,-152.15,0.0001499,2]
[338343540,1726527041449,-152.15,0.0001499,2]
[338343542,1726527041459,-152.15,0.0001499,2]
[338343544,1726527041469,-203.0601175,0.00014998,2]
[338343546,1726527041479,-203.0601175,0.00014998,2]
[338343548,1726527041488,-203.0601175,0.00014998,2]
[338343550,1726527041498,-203.0601175,0.00014998,2]
[338343551,1726527041508,-203.0601175,0.00014998,2]
[338343552,1726527041517,-203.0601175,0.00014998,2]
[338343553,1726527041527,-820.4104446,0.00014998,2]
[338343554,1726527041539,-820.4104446,0.00014998,2]
[338343555,1726527041549,-820.4104446,0.00014998,2]
[338343556,1726527041558,-820.4104446,0.00014998,2]
[338343557,1726527041567,-820.4104446,0.00014998,2]
[338343558,1726527041577,-820.4104446,0.00014998,2]
[338343559,1726527041586,-490.4919186,0.00014998,2]
[338343560,1726527041595,-150.01,0.00014999,2]
[338343561,1726527041604,-292.99129239,0.00014999,2]
[338343562,1726527041613,-1000.0,0.00014999,2]
[338343563,1726527041623,-1000.0,0.00014999,2]
[338343564,1726527041632,-1000.0,0.00014999,2]
[338343565,1726527041641,-1000.0,0.00014999,2]
[338343566,1726527041651,-1000.0,0.00014999,2]
[338343567,1726527041660,-1000.0,0.00014999,2]
[338343568,1726527041669,-1000.0,0.00014999,2]
[338343569,1726527041679,-1165.1629,0.00014999,2]
[338343571,1726527041688,-3375.35811902,0.00014999,2]
[338343572,1726527041698,-160388.78211589,0.00015,2]
[338343573,1726527041707,-285515.72184896,0.00015,2]
[338343575,1726527041717,-315122.36555277,0.00015,2]